[Event "*** Titled Tuesday Blitz"]
[Site "Chess.com"]
[Date "2020.05.19"]
[Round "7"]
[White "tan275"]
[Black "boasovietica"]
[Result "1/2-1/2"]
[WhiteElo "2211"]
[BlackElo "2384"]
[TimeControl "180+1"]
[EndTime "13:23:58 PDT"]
[Termination "Game drawn - timeout vs insufficient material"]

1. d4 {[%clk 0:03:00.9]} 1... Nf6 {[%clk 0:02:56.2]} 2. c4 {[%clk 0:03:00.3]}
2... g6 {[%clk 0:02:55.6]} 3. g3 {[%clk 0:02:58.7]} 3... Bg7 {[%clk 0:02:52.7]}
4. Bg2 {[%clk 0:02:59.2]} 4... O-O {[%clk 0:02:52.6]} 5. Nc3 {[%clk 0:02:59]}
5... d6 {[%clk 0:02:53]} 6. Nf3 {[%clk 0:02:58.5]} 6... Nc6 {[%clk 0:02:53.3]}
7. h3 {[%clk 0:02:48.9]} 7... e5 {[%clk 0:02:49.9]} 8. dxe5 {[%clk 0:02:32.3]}
8... dxe5 {[%clk 0:02:49]} 9. Qxd8 {[%clk 0:02:32.3]} 9... Rxd8 {[%clk
0:02:47.8]} 10. Bg5 {[%clk 0:02:32.7]} 10... Be6 {[%clk 0:02:43.7]} 11. Rc1
{[%clk 0:01:58.5]} 11... h6 {[%clk 0:02:40.1]} 12. Bxf6 {[%clk 0:01:57.2]} 12...
Bxf6 {[%clk 0:02:41]} 13. O-O {[%clk 0:01:51.7]} 13... Bg7 {[%clk 0:02:37.6]}
14. Ne4 {[%clk 0:01:48.4]} 14... Bf8 {[%clk 0:02:33.2]} 15. Rfd1 {[%clk
0:01:36.5]} 15... f5 {[%clk 0:02:32]} 16. Nf6+ {[%clk 0:01:34.6]} 16... Kf7
{[%clk 0:02:26.3]} 17. Nd5 {[%clk 0:01:35]} 17... Rd7 {[%clk 0:02:21.7]} 18. a3
{[%clk 0:01:30.4]} 18... Rad8 {[%clk 0:02:21.4]} 19. Nh4 {[%clk 0:00:53.6]}
19... g5 {[%clk 0:02:13.5]} 20. Nf3 {[%clk 0:00:50.1]} 20... e4 {[%clk
0:02:11.4]} 21. Ne1 {[%clk 0:00:25.8]} 21... Bxd5 {[%clk 0:02:09.1]} 22. cxd5
{[%clk 0:00:26.3]} 22... Rxd5 {[%clk 0:02:09.5]} 23. Rxd5 {[%clk 0:00:26.6]}
23... Rxd5 {[%clk 0:02:10.4]} 24. g4 {[%clk 0:00:26.1]} 24... Rd2 {[%clk
0:02:04.2]} 25. gxf5 {[%clk 0:00:25.7]} 25... Rxe2 {[%clk 0:01:58.5]} 26. Nc2
{[%clk 0:00:20.5]} 26... Bg7 {[%clk 0:01:41.5]} 27. Kf1 {[%clk 0:00:17]} 27...
Bxb2 {[%clk 0:01:41.1]} 28. Kxe2 {[%clk 0:00:16.7]} 28... Bxc1 {[%clk
0:01:40.9]} 29. Bxe4 {[%clk 0:00:17.6]} 29... Kf6 {[%clk 0:01:36.1]} 30. Kd1
{[%clk 0:00:12.8]} 30... Bb2 {[%clk 0:01:33.8]} 31. f3 {[%clk 0:00:12.9]} 31...
Na5 {[%clk 0:01:24.6]} 32. Ke2 {[%clk 0:00:12.1]} 32... c5 {[%clk 0:01:22.4]}
33. a4 {[%clk 0:00:12.1]} 33... b6 {[%clk 0:01:20.7]} 34. Ne3 {[%clk 0:00:12.1]}
34... Ke5 {[%clk 0:01:11.7]} 35. Ng4+ {[%clk 0:00:12.1]} 35... Kd6 {[%clk
0:01:09.3]} 36. Nxh6 {[%clk 0:00:13]} 36... Nc6 {[%clk 0:01:04.6]} 37. Nf7+
{[%clk 0:00:13.2]} 37... Ke7 {[%clk 0:01:00.7]} 38. Nxg5 {[%clk 0:00:11.8]}
38... Kf6 {[%clk 0:00:59.3]} 39. Nh7+ {[%clk 0:00:10.1]} 39... Kg7 {[%clk
0:00:59.5]} 40. f6+ {[%clk 0:00:09.5]} 40... Kg8 {[%clk 0:00:59.1]} 41. f7+
{[%clk 0:00:08.9]} 41... Kxf7 {[%clk 0:00:59]} 42. Bxc6 {[%clk 0:00:09.5]} 42...
Bd4 {[%clk 0:00:57.4]} 43. Be4 {[%clk 0:00:10.4]} 43... Kg7 {[%clk 0:00:57]} 44.
Kd3 {[%clk 0:00:11]} 44... a6 {[%clk 0:00:57]} 45. Kc4 {[%clk 0:00:11.1]} 45...
Kh6 {[%clk 0:00:54.1]} 46. h4 {[%clk 0:00:11.6]} 46... Kh5 {[%clk 0:00:52.7]}
47. Bd3 {[%clk 0:00:12]} 47... Bf2 {[%clk 0:00:51.4]} 48. Be4 {[%clk 0:00:12.9]}
48... Kxh4 {[%clk 0:00:50.4]} 49. Bb7 {[%clk 0:00:12.8]} 49... b5+ {[%clk
0:00:50]} 50. axb5 {[%clk 0:00:12.6]} 50... axb5+ {[%clk 0:00:50.4]} 51. Kxb5
{[%clk 0:00:13.5]} 51... Kh5 {[%clk 0:00:48.7]} 52. Kc4 {[%clk 0:00:14.4]} 52...
Kg6 {[%clk 0:00:48.1]} 53. Nf8+ {[%clk 0:00:14.8]} 53... Kf6 {[%clk 0:00:47.1]}
54. Nd7+ {[%clk 0:00:15.7]} 54... Kf5 {[%clk 0:00:46.8]} 55. Nxc5 {[%clk
0:00:16.6]} 55... Be3 {[%clk 0:00:45.3]} 56. Be4+ {[%clk 0:00:16.9]} 56... Kf6
{[%clk 0:00:38.2]} 57. Nd3 {[%clk 0:00:17.8]} 57... Bd2 {[%clk 0:00:36.9]} 58.
Kd5 {[%clk 0:00:18.7]} 58... Kf7 {[%clk 0:00:35.4]} 59. Kd4 {[%clk 0:00:19.6]}
59... Kf8 {[%clk 0:00:32.2]} 60. Ke5 {[%clk 0:00:20.5]} 60... Kf7 {[%clk
0:00:28.7]} 61. Kf5 {[%clk 0:00:21.4]} 61... Be3 {[%clk 0:00:27.4]} 62. f4
{[%clk 0:00:22.3]} 62... Bxf4 {[%clk 0:00:27]} 63. Kxf4 {[%clk 0:00:22.4]} 63...
Ke6 {[%clk 0:00:26.9]} 64. Ke3 {[%clk 0:00:21.5]} 64... Kd6 {[%clk 0:00:26.9]}
65. Kd4 {[%clk 0:00:21.8]} 65... Ke6 {[%clk 0:00:25.3]} 66. Nf4+ {[%clk
0:00:20.1]} 66... Kf6 {[%clk 0:00:24.9]} 67. Nh3 {[%clk 0:00:20.1]} 67... Ke6
{[%clk 0:00:24.6]} 68. Ng5+ {[%clk 0:00:18.1]} 68... Kf6 {[%clk 0:00:23.8]} 69.
Nf3 {[%clk 0:00:19]} 69... Ke6 {[%clk 0:00:23.8]} 70. Kc5 {[%clk 0:00:18.2]}
70... Kf6 {[%clk 0:00:21.1]} 71. Kd6 {[%clk 0:00:18.6]} 71... Kf7 {[%clk
0:00:21.2]} 72. Ke5 {[%clk 0:00:16.2]} 72... Ke7 {[%clk 0:00:20.2]} 73. Nd4
{[%clk 0:00:14.8]} 73... Kd7 {[%clk 0:00:18.2]} 74. Bd5 {[%clk 0:00:11.9]} 74...
Ke7 {[%clk 0:00:17.8]} 75. Bc6 {[%clk 0:00:10.4]} 75... Kf7 {[%clk 0:00:17.4]}
76. Kf5 {[%clk 0:00:08.7]} 76... Ke7 {[%clk 0:00:17.5]} 77. Ke5 {[%clk
0:00:08.9]} 77... Kf7 {[%clk 0:00:17.7]} 78. Nf3 {[%clk 0:00:09.3]} 78... Kg6
{[%clk 0:00:15.7]} 79. Be8+ {[%clk 0:00:09.4]} 79... Kg7 {[%clk 0:00:14.2]} 80.
Ke6 {[%clk 0:00:09.5]} 80... Kf8 {[%clk 0:00:12.7]} 81. Bh5 {[%clk 0:00:09.1]}
81... Kg7 {[%clk 0:00:12.9]} 82. Ne5 {[%clk 0:00:06.7]} 82... Kh6 {[%clk
0:00:12.1]} 83. Bf3 {[%clk 0:00:06.1]} 83... Kg5 {[%clk 0:00:12.4]} 84. Bd1
{[%clk 0:00:06]} 84... Kf4 {[%clk 0:00:12.4]} 85. Nc4 {[%clk 0:00:04.8]} 85...
Ke4 {[%clk 0:00:12.3]} 86. Kd6 {[%clk 0:00:03.9]} 86... Kd4 {[%clk 0:00:05.6]}
87. Ne5 {[%clk 0:00:04.8]} 87... Ke4 {[%clk 0:00:05.7]} 88. Bh5 {[%clk
0:00:05.7]} 88... Kd4 {[%clk 0:00:05.8]} 89. Bg6 {[%clk 0:00:05.2]} 89... Ke3
{[%clk 0:00:05.6]} 90. Kd5 {[%clk 0:00:03.8]} 90... Kf4 {[%clk 0:00:05.8]} 91.
Kd4 {[%clk 0:00:02.9]} 91... Kg5 {[%clk 0:00:05.5]} 92. Bd3 {[%clk 0:00:03.7]}
92... Kf4 {[%clk 0:00:05.3]} 93. Nf7 {[%clk 0:00:03.4]} 93... Kg4 {[%clk
0:00:04.4]} 94. Ke4 {[%clk 0:00:03.6]} 94... Kg3 {[%clk 0:00:04.7]} 95. Ke3
{[%clk 0:00:03.3]} 95... Kg4 {[%clk 0:00:04.8]} 96. Ke4 {[%clk 0:00:04.2]} 96...
Kg3 {[%clk 0:00:04.2]} 97. Ne5 {[%clk 0:00:03.8]} 97... Kf2 {[%clk 0:00:03.2]}
98. Kf4 {[%clk 0:00:03.1]} 98... Ke1 {[%clk 0:00:03]} 99. Ke3 {[%clk 0:00:03.4]}
99... Kd1 {[%clk 0:00:02.8]} 100. Nc4 {[%clk 0:00:04.3]} 100... Kc1 {[%clk
0:00:02.7]} 101. Kd4 {[%clk 0:00:03.4]} 101... Kd1 {[%clk 0:00:02.1]} 102. Ke3
{[%clk 0:00:03.6]} 102... Kc1 {[%clk 0:00:02.3]} 103. Nd2 {[%clk 0:00:01.7]}
103... Kb2 {[%clk 0:00:02]} 1/2-1/2

[Event "*** Titled Tuesday Blitz"]
[Site "Chess.com"]
[Date "2020.05.19"]
[Round "8"]
[White "Bubi6"]
[Black "2346PL"]
[Result "0-1"]
[WhiteElo "2593"]
[BlackElo "2453"]
[TimeControl "180+1"]
[EndTime "13:31:15 PDT"]
[Termination "2346PL won by resignation"]

1. e4 {[%clk 0:03:00.9]} 1... c5 {[%clk 0:03:00.1]} 2. Nf3 {[%clk 0:03:00.6]}
2... Nf6 {[%clk 0:03:00.7]} 3. Nc3 {[%clk 0:02:59.3]} 3... Nc6 {[%clk
0:03:00.5]} 4. d4 {[%clk 0:02:59.4]} 4... d5 {[%clk 0:03:01.1]} 5. exd5 {[%clk
0:02:58.4]} 5... Nxd5 {[%clk 0:03:02]} 6. Nxd5 {[%clk 0:02:58.7]} 6... Qxd5
{[%clk 0:03:02.7]} 7. c4 {[%clk 0:02:58.7]} 7... Qe4+ {[%clk 0:03:01.8]} 8. Be3
{[%clk 0:02:59.2]} 8... cxd4 {[%clk 0:03:00.3]} 9. Nxd4 {[%clk 0:02:58.5]} 9...
Nxd4 {[%clk 0:02:51]} 10. Qxd4 {[%clk 0:02:58.8]} 10... Qxd4 {[%clk 0:02:48.3]}
11. Bxd4 {[%clk 0:02:59.7]} 11... f6 {[%clk 0:02:48.6]} 12. f4 {[%clk
0:02:57.8]} 12... Bf5 {[%clk 0:02:44.7]} 13. Be2 {[%clk 0:02:55.8]} 13... e5
{[%clk 0:02:32.2]} 14. fxe5 {[%clk 0:02:50.5]} 14... Bb4+ {[%clk 0:02:30.8]} 15.
Kf2 {[%clk 0:02:40]} 15... fxe5 {[%clk 0:02:30.2]} 16. Be3 {[%clk 0:02:30.3]}
16... O-O {[%clk 0:02:27.1]} 17. Rhf1 {[%clk 0:02:29.3]} 17... Bd3+ {[%clk
0:02:18.6]} 0-1

[Event "*** Titled Tuesday Blitz"]
[Site "Chess.com"]
[Date "2020.05.19"]
[Round "8"]
[White "lolo9292"]
[Black "Rodalquilar"]
[Result "1-0"]
[WhiteElo "2537"]
[BlackElo "2634"]
[TimeControl "180+1"]
[EndTime "13:32:02 PDT"]
[Termination "lolo9292 won by resignation"]

1. d4 {[%clk 0:03:00.9]} 1... Nf6 {[%clk 0:01:35.4]} 2. c4 {[%clk 0:03:01.1]}
2... e6 {[%clk 0:01:35.6]} 3. Nc3 {[%clk 0:03:01]} 3... Bb4 {[%clk 0:01:35.8]}
4. Nf3 {[%clk 0:03:01.6]} 4... d5 {[%clk 0:01:35.6]} 5. Bd2 {[%clk 0:03:01.7]}
5... O-O {[%clk 0:01:35.1]} 6. e3 {[%clk 0:03:02.3]} 6... b6 {[%clk 0:01:34.4]}
7. cxd5 {[%clk 0:03:02.8]} 7... exd5 {[%clk 0:01:34.5]} 8. Bd3 {[%clk
0:03:03.5]} 8... Bb7 {[%clk 0:01:33.1]} 9. O-O {[%clk 0:03:03.8]} 9... a6 {[%clk
0:01:32.9]} 10. Ne5 {[%clk 0:03:01.6]} 10... Nbd7 {[%clk 0:01:32.8]} 11. f4
{[%clk 0:03:01.5]} 11... Bd6 {[%clk 0:01:32.4]} 12. Qf3 {[%clk 0:03:01.1]} 12...
c5 {[%clk 0:01:32.6]} 13. Be1 {[%clk 0:03:00.1]} 13... Re8 {[%clk 0:01:30]} 14.
Bh4 {[%clk 0:02:59.8]} 14... Qc7 {[%clk 0:01:29.9]} 15. Nxd7 {[%clk 0:02:46.5]}
15... Nxd7 {[%clk 0:01:29.5]} 16. Nxd5 {[%clk 0:02:45.8]} 16... Bxd5 {[%clk
0:01:28.3]} 17. Qxd5 {[%clk 0:02:45.5]} 17... Rxe3 {[%clk 0:01:28.3]} 18. Qxa8+
{[%clk 0:02:45.2]} 1-0

[Event "*** Titled Tuesday Blitz"]
[Site "Chess.com"]
[Date "2020.05.19"]
[Round "8"]
[White "mjray79"]
[Black "IMJonathanCarlstedt"]
[Result "0-1"]
[WhiteElo "2297"]
[BlackElo "2454"]
[TimeControl "180+1"]
[EndTime "13:32:05 PDT"]
[Termination "IMJonathanCarlstedt won by resignation"]

1. d4 {[%clk 0:03:00.9]} 1... g6 {[%clk 0:03:00.9]} 2. c4 {[%clk 0:03:00.8]}
2... Bg7 {[%clk 0:03:01.3]} 3. e4 {[%clk 0:03:01.2]} 3... Nc6 {[%clk 0:02:59.7]}
4. Ne2 {[%clk 0:02:58.3]} 4... d6 {[%clk 0:02:58.6]} 5. Nbc3 {[%clk 0:02:56.3]}
5... e5 {[%clk 0:02:58.5]} 6. d5 {[%clk 0:02:55.6]} 6... Nce7 {[%clk 0:02:58.9]}
7. Ng3 {[%clk 0:02:53.2]} 7... f5 {[%clk 0:02:57.5]} 8. exf5 {[%clk 0:02:51.2]}
8... Nxf5 {[%clk 0:02:58.4]} 9. Bd3 {[%clk 0:02:49.7]} 9... Nf6 {[%clk
0:02:57.5]} 10. Nce4 {[%clk 0:02:43]} 10... O-O {[%clk 0:02:56.2]} 11. O-O
{[%clk 0:02:41.6]} 11... Nd4 {[%clk 0:02:51.5]} 12. Be3 {[%clk 0:02:38.3]} 12...
Ng4 {[%clk 0:02:46.2]} 13. Bxd4 {[%clk 0:02:35.4]} 13... exd4 {[%clk 0:02:47.1]}
14. h3 {[%clk 0:02:34]} 14... Ne5 {[%clk 0:02:46.6]} 15. Rc1 {[%clk 0:02:32.4]}
15... Qh4 {[%clk 0:02:38.2]} 16. Be2 {[%clk 0:02:24.9]} 16... Rf4 {[%clk
0:02:35]} 17. Kh2 {[%clk 0:02:16.9]} 17... Rxe4 {[%clk 0:02:32.6]} 18. Nxe4
{[%clk 0:02:15.7]} 18... Qxe4 {[%clk 0:02:33.5]} 19. Re1 {[%clk 0:02:10]} 19...
d3 {[%clk 0:02:24.2]} 20. Bf3 {[%clk 0:01:50.9]} 20... Qf4+ {[%clk 0:02:23.5]}
21. Kg1 {[%clk 0:01:49]} 21... d2 {[%clk 0:02:18.7]} 0-1

[Event "*** Titled Tuesday Blitz"]
[Site "Chess.com"]
[Date "2020.05.19"]
[Round "8"]
[White "NefeLV"]
[Black "Shivagami"]
[Result "0-1"]
[WhiteElo "1823"]
[BlackElo "2176"]
[TimeControl "180+1"]
[EndTime "13:32:11 PDT"]
[Termination "Shivagami won by resignation"]

1. c4 {[%clk 0:03:00.9]} 1... e5 {[%clk 0:02:58.6]} 2. Nc3 {[%clk 0:03:00.1]}
2... Bb4 {[%clk 0:02:58]} 3. a3 {[%clk 0:02:58.8]} 3... Bxc3 {[%clk 0:02:57.1]}
4. bxc3 {[%clk 0:02:59.7]} 4... Nf6 {[%clk 0:02:53.9]} 5. d3 {[%clk 0:02:58.8]}
5... c6 {[%clk 0:02:49.1]} 6. e4 {[%clk 0:02:56.7]} 6... d5 {[%clk 0:02:44.8]}
7. cxd5 {[%clk 0:02:56.2]} 7... cxd5 {[%clk 0:02:43.9]} 8. Nf3 {[%clk 0:02:51]}
8... Nc6 {[%clk 0:02:43]} 9. Bg5 {[%clk 0:02:43.9]} 9... h6 {[%clk 0:02:30.4]}
10. Bxf6 {[%clk 0:02:42.7]} 10... gxf6 {[%clk 0:02:23.9]} 11. exd5 {[%clk
0:02:39.2]} 11... Qxd5 {[%clk 0:02:23.5]} 12. Rb1 {[%clk 0:02:31.1]} 12... Qa5
{[%clk 0:02:09]} 13. Qb3 {[%clk 0:02:26.5]} 13... Be6 {[%clk 0:02:08.1]} 14. Qb2
{[%clk 0:02:15.3]} 14... Nd4 {[%clk 0:02:01.7]} 15. Nd2 {[%clk 0:02:10.3]} 15...
Nf5 {[%clk 0:01:50.8]} 16. Qb3 {[%clk 0:02:07.5]} 16... Bxb3 {[%clk 0:01:50.1]}
0-1

[Event "*** Titled Tuesday Blitz"]
[Site "Chess.com"]
[Date "2020.05.19"]
[Round "8"]
[White "AlexTriapishko"]
[Black "LiverpooL174"]
[Result "1/2-1/2"]
[WhiteElo "2724"]
[BlackElo "2553"]
[TimeControl "180+1"]
[EndTime "13:32:14 PDT"]
[Termination "Game drawn by agreement"]

1. d4 {[%clk 0:02:20]} 1... Nf6 {[%clk 0:02:59.3]} 2. Nc3 {[%clk 0:02:16.6]}
2... d6 {[%clk 0:03:00.2]} 3. Bg5 {[%clk 0:02:05.5]} 3... Nbd7 {[%clk
0:03:00.4]} 4. e3 {[%clk 0:01:57.9]} 4... h6 {[%clk 0:03:00.3]} 5. Bh4 {[%clk
0:01:52]} 5... g5 {[%clk 0:03:00.4]} 6. Bg3 {[%clk 0:01:44.8]} 6... Bg7 {[%clk
0:03:01.1]} 7. h4 {[%clk 0:01:40.1]} 7... g4 {[%clk 0:03:01.6]} 8. h5 {[%clk
0:01:32]} 8... c5 {[%clk 0:03:01.6]} 9. Nge2 {[%clk 0:01:26.9]} 9... Qb6 {[%clk
0:03:01.3]} 10. Rb1 {[%clk 0:01:11.7]} 10... O-O {[%clk 0:02:55.8]} 11. Rh4
{[%clk 0:01:05]} 11... Kh8 {[%clk 0:02:47.8]} 1/2-1/2

[Event "*** Titled Tuesday Blitz"]
[Site "Chess.com"]
[Date "2020.05.19"]
[Round "8"]
[White "Maksimus1998"]
[Black "Nikolaj_6"]
[Result "0-1"]
[WhiteElo "2446"]
[BlackElo "2571"]
[TimeControl "180+1"]
[EndTime "13:32:37 PDT"]
[Termination "Nikolaj_6 won by resignation"]

1. c4 {[%clk 0:03:00.9]} 1... Nf6 {[%clk 0:02:59.4]} 2. Nc3 {[%clk 0:03:00.3]}
2... g6 {[%clk 0:02:59.2]} 3. e4 {[%clk 0:02:59.8]} 3... d6 {[%clk 0:02:59.3]}
4. d4 {[%clk 0:02:59.7]} 4... Bg7 {[%clk 0:02:59.5]} 5. Be2 {[%clk 0:03:00.4]}
5... O-O {[%clk 0:02:59.5]} 6. Be3 {[%clk 0:03:01]} 6... c5 {[%clk 0:02:58]} 7.
d5 {[%clk 0:03:00.3]} 7... e6 {[%clk 0:02:57.9]} 8. Nf3 {[%clk 0:03:00.1]} 8...
exd5 {[%clk 0:02:58.3]} 9. cxd5 {[%clk 0:03:00.3]} 9... a6 {[%clk 0:02:54.4]}
10. a4 {[%clk 0:02:52.9]} 10... Bg4 {[%clk 0:02:49.4]} 11. Nd2 {[%clk
0:02:52.2]} 11... Bxe2 {[%clk 0:02:48.9]} 12. Qxe2 {[%clk 0:02:53.1]} 12... Nbd7
{[%clk 0:02:48.4]} 13. O-O {[%clk 0:02:52.4]} 13... Re8 {[%clk 0:02:48.4]} 14.
a5 {[%clk 0:02:46.1]} 14... Qc7 {[%clk 0:02:24.4]} 15. Ra4 {[%clk 0:02:37.4]}
15... b5 {[%clk 0:02:13.4]} 16. axb6 {[%clk 0:02:36.3]} 16... Qxb6 {[%clk
0:02:10.5]} 17. Nc4 {[%clk 0:02:22.3]} 17... Qb8 {[%clk 0:02:08.5]} 18. f3
{[%clk 0:02:16.8]} 18... Nb6 {[%clk 0:02:07.7]} 19. Nxb6 {[%clk 0:02:11.8]}
19... Qxb6 {[%clk 0:02:08.6]} 20. Rfa1 {[%clk 0:02:12]} 20... a5 {[%clk
0:02:02.3]} 21. Qb5 {[%clk 0:02:07.9]} 21... Nxd5 {[%clk 0:01:47.4]} 22. Qxb6
{[%clk 0:01:57.2]} 22... Nxb6 {[%clk 0:01:47.1]} 23. Rxa5 {[%clk 0:01:57.9]}
23... Rxa5 {[%clk 0:01:46.9]} 24. Rxa5 {[%clk 0:01:58.8]} 24... Nc4 {[%clk
0:01:47.3]} 0-1

[Event "*** Titled Tuesday Blitz"]
[Site "Chess.com"]
[Date "2020.05.19"]
[Round "8"]
[White "IwkooO"]
[Black "dianosky"]
[Result "1-0"]
[WhiteElo "2552"]
[BlackElo "2382"]
[TimeControl "180+1"]
[EndTime "13:32:37 PDT"]
[Termination "IwkooO won by resignation"]

1. e4 {[%clk 0:03:00.9]} 1... c5 {[%clk 0:02:59.2]} 2. Nf3 {[%clk 0:03:00.6]}
2... a6 {[%clk 0:02:59.5]} 3. d4 {[%clk 0:03:01.1]} 3... cxd4 {[%clk 0:02:59.7]}
4. c3 {[%clk 0:02:47.9]} 4... dxc3 {[%clk 0:03:00.6]} 5. Nxc3 {[%clk 0:02:47.9]}
5... e6 {[%clk 0:03:00.4]} 6. Bc4 {[%clk 0:02:48.1]} 6... b5 {[%clk 0:02:59.4]}
7. Bb3 {[%clk 0:02:47.3]} 7... Bb7 {[%clk 0:03:00.1]} 8. Qe2 {[%clk 0:02:46.2]}
8... d6 {[%clk 0:03:00.5]} 9. O-O {[%clk 0:02:46.7]} 9... Nd7 {[%clk 0:03:00.7]}
10. Bf4 {[%clk 0:02:46.5]} 10... Ngf6 {[%clk 0:03:00.8]} 11. Rfd1 {[%clk
0:02:44.5]} 11... Qb8 {[%clk 0:03:01.2]} 12. a3 {[%clk 0:02:36.7]} 12... Be7
{[%clk 0:03:01.2]} 13. h3 {[%clk 0:02:32.3]} 13... O-O {[%clk 0:03:01.1]} 14.
Rd2 {[%clk 0:02:30.7]} 14... Rd8 {[%clk 0:02:51.3]} 15. Rad1 {[%clk 0:02:29.6]}
15... Nc5 {[%clk 0:02:45.4]} 16. Bc2 {[%clk 0:02:29.8]} 16... Bc6 {[%clk
0:02:32.7]} 17. e5 {[%clk 0:02:07.2]} 17... Bxf3 {[%clk 0:02:32]} 18. Qxf3
{[%clk 0:02:06.1]} 18... dxe5 {[%clk 0:02:32.4]} 19. Rxd8+ {[%clk 0:02:02.7]}
19... Bxd8 {[%clk 0:02:29.2]} 20. Bxe5 {[%clk 0:02:03.1]} 20... Qb7 {[%clk
0:02:29]} 21. Qg3 {[%clk 0:01:42.7]} 21... Rc8 {[%clk 0:02:21.6]} 22. Rxd8+
{[%clk 0:01:39]} 22... Rxd8 {[%clk 0:02:13.6]} 23. Bxf6 {[%clk 0:01:39.3]} 1-0

[Event "*** Titled Tuesday Blitz"]
[Site "Chess.com"]
[Date "2020.05.19"]
[Round "8"]
[White "CrushingKings"]
[Black "cassoulet"]
[Result "0-1"]
[WhiteElo "2512"]
[BlackElo "2647"]
[TimeControl "180+1"]
[EndTime "13:32:47 PDT"]
[Termination "cassoulet won by resignation"]

1. e4 {[%clk 0:02:34.9]} 1... c5 {[%clk 0:02:58.4]} 2. d4 {[%clk 0:02:34.6]}
2... cxd4 {[%clk 0:02:57.7]} 3. c3 {[%clk 0:02:35.5]} 3... Nf6 {[%clk
0:02:57.5]} 4. e5 {[%clk 0:02:35.6]} 4... Nd5 {[%clk 0:02:57.8]} 5. Nf3 {[%clk
0:02:36.2]} 5... Nc6 {[%clk 0:02:57.7]} 6. Bc4 {[%clk 0:02:36.3]} 6... Nb6
{[%clk 0:02:58]} 7. Bb3 {[%clk 0:02:34.2]} 7... g6 {[%clk 0:02:58.4]} 8. Ng5
{[%clk 0:02:23]} 8... d5 {[%clk 0:02:57.8]} 9. exd6 {[%clk 0:02:23.9]} 9... e6
{[%clk 0:02:58]} 10. Qf3 {[%clk 0:02:18.5]} 10... f6 {[%clk 0:02:56.1]} 11. Bxe6
{[%clk 0:02:01]} 11... Bxd6 {[%clk 0:02:49.3]} 12. O-O {[%clk 0:01:50.6]} 12...
Ne5 {[%clk 0:02:36.5]} 13. Qf4 {[%clk 0:01:40.5]} 13... fxg5 {[%clk 0:02:29.5]}
14. Qxd4 {[%clk 0:01:06.9]} 14... Bxe6 {[%clk 0:02:27.6]} 15. Bxg5 {[%clk
0:01:07.5]} 15... Nf3+ {[%clk 0:02:19.9]} 16. gxf3 {[%clk 0:01:05.7]} 16...
Qxg5+ {[%clk 0:02:19.6]} 17. Kh1 {[%clk 0:01:06.3]} 17... O-O-O {[%clk
0:02:10.9]} 0-1

[Event "*** Titled Tuesday Blitz"]
[Site "Chess.com"]
[Date "2020.05.19"]
[Round "8"]
[White "CroissantNeuf"]
[Black "Lubov_Gordyk"]
[Result "0-1"]
[WhiteElo "2358"]
[BlackElo "2617"]
[TimeControl "180+1"]
[EndTime "13:33:02 PDT"]
[Termination "Lubov_Gordyk won by resignation"]

1. Nf3 {[%clk 0:03:00.9]} 1... g6 {[%clk 0:02:59.3]} 2. e4 {[%clk 0:03:00.4]}
2... Bg7 {[%clk 0:02:59.1]} 3. d4 {[%clk 0:03:01]} 3... d6 {[%clk 0:02:59.3]} 4.
Bd3 {[%clk 0:03:00.4]} 4... Nf6 {[%clk 0:02:58]} 5. O-O {[%clk 0:02:59.9]} 5...
O-O {[%clk 0:02:58.3]} 6. h3 {[%clk 0:03:00.5]} 6... Nc6 {[%clk 0:02:58.1]} 7.
c3 {[%clk 0:02:58.7]} 7... e5 {[%clk 0:02:58]} 8. Re1 {[%clk 0:02:54.8]} 8...
Nh5 {[%clk 0:02:57.6]} 9. Be3 {[%clk 0:02:53.5]} 9... h6 {[%clk 0:02:56.8]} 10.
Nbd2 {[%clk 0:02:51.2]} 10... Qf6 {[%clk 0:02:56.2]} 11. Bf1 {[%clk 0:02:39.6]}
11... Nf4 {[%clk 0:02:55.6]} 12. Kh2 {[%clk 0:02:38.4]} 12... g5 {[%clk
0:02:54.5]} 13. g3 {[%clk 0:02:37.2]} 13... Ng6 {[%clk 0:02:54]} 14. Nc4 {[%clk
0:01:49]} 14... Re8 {[%clk 0:02:45.3]} 15. dxe5 {[%clk 0:01:34.3]} 15... dxe5
{[%clk 0:02:42.7]} 16. Be2 {[%clk 0:01:12.3]} 16... Be6 {[%clk 0:02:32.8]} 17.
b4 {[%clk 0:01:01.7]} 17... Rad8 {[%clk 0:02:29.8]} 18. Qc1 {[%clk 0:00:57.7]}
18... Bxc4 {[%clk 0:02:28.8]} 0-1

[Event "*** Titled Tuesday Blitz"]
[Site "Chess.com"]
[Date "2020.05.19"]
[Round "8"]
[White "Perecke"]
[Black "Ariadna_Atreides"]
[Result "0-1"]
[WhiteElo "2252"]
[BlackElo "2090"]
[TimeControl "180+1"]
[EndTime "13:33:07 PDT"]
[Termination "Ariadna_Atreides won by resignation"]

1. e4 {[%clk 0:03:00.9]} 1... c5 {[%clk 0:02:59.3]} 2. Nf3 {[%clk 0:03:01.1]}
2... d6 {[%clk 0:02:59.6]} 3. d4 {[%clk 0:03:01.4]} 3... cxd4 {[%clk 0:03:00]}
4. Nxd4 {[%clk 0:03:02.3]} 4... Nf6 {[%clk 0:03:00.2]} 5. Nc3 {[%clk 0:03:02.7]}
5... Nc6 {[%clk 0:03:00.4]} 6. Bg5 {[%clk 0:03:01.1]} 6... e6 {[%clk 0:03:00]}
7. Qd2 {[%clk 0:02:59.5]} 7... a6 {[%clk 0:03:00.5]} 8. O-O-O {[%clk 0:02:59.1]}
8... Bd7 {[%clk 0:03:00.9]} 9. f4 {[%clk 0:02:54.2]} 9... Be7 {[%clk 0:03:00]}
10. Be2 {[%clk 0:02:52.1]} 10... b5 {[%clk 0:02:58.4]} 11. a3 {[%clk 0:02:51.6]}
11... Qc7 {[%clk 0:02:52.7]} 12. Bf3 {[%clk 0:02:48.5]} 12... Rc8 {[%clk
0:02:51]} 13. Bxf6 {[%clk 0:02:42]} 13... Bxf6 {[%clk 0:02:34.5]} 14. Ndxb5
{[%clk 0:02:30.2]} 14... axb5 {[%clk 0:02:28.1]} 15. Nxb5 {[%clk 0:02:31.1]}
15... Bxb2+ {[%clk 0:01:58.4]} 16. Kxb2 {[%clk 0:02:10.1]} 16... Rb8 {[%clk
0:01:42.1]} 17. c4 {[%clk 0:02:08.1]} 17... Na5 {[%clk 0:01:39.1]} 18. Ka2
{[%clk 0:01:58.7]} 18... Qxc4+ {[%clk 0:01:35.3]} 19. Ka1 {[%clk 0:01:32.6]}
19... Nb3+ {[%clk 0:01:34.1]} 0-1